{"text_format":"1","workbook":"xlsx","n_sheets":1,"sheets":["List1"],"not_rendered":{"charts":0,"images":40,"macros":0,"external_links":0,"defined_names":0,"comments":0,"pivot_tables":0},"unopened":[],"bounds":{"document_bytes":16777216,"sheet_cells":100000,"rows_first":2000,"rows_last":500,"rows_between":2000,"halvings":0,"cell_chars":16384,"cell_head_chars":4096},"cells_cut":0,"cells_raw":0,"read":"whole","date_system":"1900"}

{"sheet":"List1","index":0,"n_rows":82,"n_cols":9,"rows_kept":82,"cut":false,"hidden":false,"merged":[[81,0,81,7],[0,1,0,8],[74,0,74,1],[75,0,75,1],[76,0,76,1],[77,0,77,2],[77,3,77,4],[78,0,78,2],[78,3,78,4],[79,0,79,2],[79,3,79,4],[80,0,80,2],[80,3,80,4]]}
[null,"TJ Juřinka – vybavení místností nábytkem"]
[]
["Patro","Místnost ","Označení","Obrázek","Materiál","Ks","Rozměry","Cena/ks","Cena celkem"]
[null,null,null,null,"Kování",null,"( š x v x h )","Kč","Kč "]
["1N.P","1.02","A1",null,"Lavice \n- DTDL H1318 St10 Dub divoký – 18 mm\n- Kovové dvojháčky \n- Počet věšáků na skříň 8 ks\n- Povrchová úprava věšáků chrom matný \n\nDesign stejný nebo podobný jako na přiloženém   náhledu.",4,"1400 x 1800 x 500",null,{"$f":"H5*F5","v":0}]
["1N.P","1.02","A2",null,"Stůl\n- DTDL H1318 St10 Dub divoký – 18 mm\n- Stolová noha kovová kulatá 710 mm\n- Povrchová úprava noh chrom matný\n- Výšková rektifikace\n- Průměr nohy 60 mm\n\nDesign stejný nebo podobný jako na přiloženém náhledu.",1,"1500 x 730 x 700",null,{"$f":"H6*F6","v":0}]
["1N.P","1.02","A3",null,"Židle\n- Plastová černá\n- materiál vysoce kvalitní Polypropylen\n- Nosnost 100 kg\n\nDesign stejný nebo podobný jako na přiloženém náhledu.",2,"500 x 800/450 x 560",null,0]
["1N.P","1.03","A4",null,"Kovový regál\n- Kovové police \n- Počet polic 5 ks\n- Nosnost na polici 100 kg\n\nDesign stejný nebo podobný jako na přiloženém   náhledu.",4,"600 x 2100 x 500",null,0]
["1N.P","1.03","A5",null,"Opěrné desky s kovovými věšáky\n- DTDL H1318 St10 Dub divoký – 18 mm\n- Kovové věšáky dvojháček\n- Počet věšáků na desku 6 ks\n- Povrchová úprava věšáků chrom matný \n\nDesign stejný nebo podobný jako na přiloženém   náhledu.",1,"2400 x 150 ",null,0]
["1N.P","1.03","A6",null,"Opěrné desky \n- DTDL H1318 St10 Dub divoký – 18 mm\n\nDesign stejný nebo podobný jako na přiloženém   náhledu.",1,"2400 x 150 ",null,0]
["1N.P","1.03","A7",null,"Opěrné desky s kovovými věšáky\n- DTDL H1318 St10 Dub divoký – 18 mm\n- Kovové věšáky dvojháček\n- Počet věšáků na desku 6 ks\n- Povrchová úprava věšáků chrom matný \n\nDesign stejný nebo podobný jako na přiloženém   náhledu.",1,"2800 x 150 ",null,0]
["1N.P","1.03","A8",null,"Opěrné desky \n- DTDL H1318 St10 Dub divoký – 18 mm\n\nDesign stejný nebo podobný jako na přiloženém   náhledu.",1,"2800 x 150 ",null,0]
["1N.P","1.03","P.S",null,"Pivní set \n- Kovová konstrukce v kombinaci s dřevem\n- Nosnost lavic 250 kg\n- Nosnost stolu 150 kg\n\nDesign stejný nebo podobný jako na přiloženém   náhledu.",1,"1800 x 770 x 500\n1800 x 460 x 250 ",null,0]
["1N.P","1.07","A9",null,"Tvarové police na stěnu\n- DTDL H1318 St10 Dub divoký – 18 mm\n\nDesign stejný nebo podobný jako na přiloženém   náhledu.\n",2,"TVAR\n1200 x 600 x 18 ",null,0]
["1N.P","1.08","A1",null,"Lavice \n- DTDL H1318 St10 Dub divoký – 18 mm\n- Kovové dvojháčky \n- Počet věšáků na skříň 8 ks\n- Povrchová úprava věšáků chrom matný \n\nDesign stejný nebo podobný jako na přiloženém   náhledu.",5,"1400 x 1800 x 500",null,0]
["1N.P","1.08","A2",null,"Stůl\n- DTDL H1318 St10 Dub divoký – 18 mm\n- Stolová noha kovová kulatá 710 mm\n- Povrchová úprava noh chrom matný\n- Výšková rektifikace\n- Průměr nohy 60 mm\n\nDesign stejný nebo podobný jako na přiloženém náhledu.",1,"1500 x 730 x 700",null,0]
["1N.P","1.08","A3",null,"Židle\n- Plastová černá\n- materiál vysoce kvalitní Polypropylen\n- Nosnost 100 kg\n\nDesign stejný nebo podobný jako na přiloženém náhledu.",2,"500 x 800/450 x 560",null,0]
["1N.P","1.12","A3",null,"Židle\n- Plastová černá\n- materiál vysoce kvalitní Polypropylen\n- Nosnost 100 kg\n\nDesign stejný nebo podobný jako na přiloženém náhledu.",1,"500 x 800/450 x 560",null,0]
["1N.P","1.12","A12",null,"Skříň otevřená vysoká\n- DTDL H1318 St10 Dub divoký – 18 mm\n\nDesign stejný nebo podobný jako na přiloženém   náhledu.",1,"340 x 2000 x 480",null,0]
["1N.P","1.12","A13",null,"Skříň uzavřená L s policemi\n- DTDL H1318 St10 Dub divoký – 18 mm\n- Úchytky kovové chrom matný 128 mm\n- Panty s tlumením a dotahem\n\nDesign stejný nebo podobný jako na přiloženém   náhledu.",1,"600 x 2000 x 600",null,0]
["1N.P","1.12","A14",null,"Skříň uzavřená P s policemi\n DTDL H1318 St10 Dub divoký – 18 mm\n- Úchytky kovové chrom matný 128 mm\n- Panty s tlumením a dotahem\n\nDesign stejný nebo podobný jako na přiloženém   náhledu.",1,"600 x 2000 x 600",null,0]
["1N.P","1.12","A15",null,"Skříň otevřená nízká\n- DTDL H1318 St10 Dub divoký – 18 mm\n\nDesign stejný nebo podobný jako na přiloženém   náhledu.",1,"600 x 900 x 600",null,0]
["1N.P","1.12","A16",null,"Skříň uzavřená nízká s policí\n- DTDL H1318 St10 Dub divoký – 18 mm\n- Úchytky kovové chrom matný 128 mm\n- Panty s tlumením a dotahem\n\nDesign stejný nebo podobný jako na přiloženém   náhledu.",1,"600 x 900 x 600",null,0]
["1N.P","1.12","A17",null,"Stůl\n- DTDL H1318 St10 Dub divoký – 18 mm\n\nDesign stejný nebo podobný jako na přiloženém   náhledu.",1,"1550 x 750 x 600",null,0]
["1N.P","1.12","A18",null,"Kontejner mobilní\n- DTDL H1318 St10 Dub divoký – 18 mm\n- Úchytky kovové chrom matný 128 mm\n- Panty s tlumením a dotahem\n\nDesign stejný nebo podobný jako na přiloženém   náhledu.",1,"430 x 650 x 500",null,0]
["1N.P","1.13","A1.2",null,"Lavice \n- DTDL H1318 St10 Dub divoký – 18 mm\n- Kovové dvojháčky \n- Počet věšáků na skříň 6 ks\n- Povrchová úprava věšáků chrom matný \nDesign stejný nebo podobný jako na přiloženém   náhledu.",6,"1400 x 1800 x 500",null,0]
["1N.P","1.13","A2",null,"Stůl\n- DTDL H1318 St10 Dub divoký – 18 mm\n- Stolová noha kovová kulatá 710 mm\n- Povrchová úprava noh chrom matný\n- Výšková rektifikace\n- Průměr nohy 60 mm\n\nDesign stejný nebo podobný jako na přiloženém náhledu.",1,"1500 x 730 x 700",null,0]
["1N.P","1.13","A3",null,"Židle\n- Plastová černá\n- materiál vysoce kvalitní Polypropylen\n- Nosnost 100 kg\n\nDesign stejný nebo podobný jako na přiloženém náhledu.",2,"500 x 800/450 x 560",null,0]
["1N.P","1.14","A19",null,"Kovový regál\n- Kovové police \n- Počet polic 6 ks\n- Nosnost na polici 100 kg\n\nDesign stejný nebo podobný jako na přiloženém   náhledu.",2,"1000 x 2100 x 400",null,0]
["1N.P","1.14","A20",null,"Kovový regál\n- Kovové police \n- Počet polic 6 ks\n- Nosnost na polici 100 kg\n\nDesign stejný nebo podobný jako na přiloženém   náhledu.",1,"600 x 2100 x 400",null,0]
["1N.P","1.19","A1.2",null,"Lavice \n- DTDL H1318 St10 Dub divoký – 18 mm\n- Kovové dvojháčky \n- Počet věšáků na skříň 6 ks\n- Povrchová úprava věšáků chrom matný \n\nDesign stejný nebo podobný jako na přiloženém   náhledu.",6,"1400 x 1800 x 500",null,0]
["1N.P","1.19","A2",null,"Stůl\n- DTDL H1318 St10 Dub divoký – 18 mm\n- Stolová noha kovová kulatá 710 mm\n- Povrchová úprava noh chrom matný\n- Výšková rektifikace\n- Průměr nohy 60 mm\n\nDesign stejný nebo podobný jako na přiloženém náhledu.",1,"1500 x 750 x 700",null,0]
["1N.P","1.19","A3",null,"Židle\n- Plastová černá\n- materiál vysoce kvalitní Polypropylen\n- Nosnost 100 kg\n\nDesign stejný nebo podobný jako na přiloženém náhledu.",2,"500 x 800/450 x 560",null,0]
["1N.P","1.20","A1.2",null,"Lavice \n- DTDL H1318 St10 Dub divoký – 18 mm\n- Kovové dvojháčky \n- Počet věšáků na skříň 6 ks\n- Povrchová úprava věšáků chrom matný \n\nDesign stejný nebo podobný jako na přiloženém   náhledu.",1,"1400 x 1800 x 500",null,0]
["1N.P","1.20","A2",null,"Stůl\n- DTDL H1318 St10 Dub divoký – 18 mm\n- Stolová noha kovová kulatá 710 mm\n- Povrchová úprava noh chrom matný\n- Výšková rektifikace\n- Průměr nohy 60 mm\n\nDesign stejný nebo podobný jako na přiloženém náhledu.",1,"1500 x 730 x 500",null,0]
["1N.P","1.20","A2.1",null,"Stůl\n- DTDL H1318 St10 Dub divoký – 18 mm\n- Stolová noha kovová kulatá 710 mm\n- Povrchová úprava noh chrom matný\n- Výšková rektifikace\n- Průměr nohy 60 mm\n\nDesign stejný nebo podobný jako na přiloženém náhledu.",1,"1100 x 730 x 500",null,0]
["1N.P","1.20","A3",null,"Židle\n- Plastová černá\n- materiál vysoce kvalitní Polypropylen\n- Nosnost 100 kg\n\nDesign stejný nebo podobný jako na přiloženém náhledu.",3,"500 x 800/450 x 560",null,0]
["1N.P","1.21","A22",null,"Skříň uzavřená L s policemi\n- DTDL H1318 St10 Dub divoký – 18 mm\n- Úchytky kovové chrom matný 128 mm\n- Panty s tlumením a dotahem\n\nDesign stejný nebo podobný jako na přiloženém   náhledu.",1,"600 x 2000 x 500",null,0]
["2N.P","2.02","A30",null,"Jídelní stůl pro 6 osob masiv DUB\n- povrchová úprava olej\n\nDesign stejný nebo podobný jako na přiloženém   náhledu.",4,"1600 x 750 x 900",null,0]
["2N.P","2.02","A41",null,"Židle masivní \n- dubová židle\n- hmostnost židle 8 kg\n- povrchová úprava olej, vosk\n- čalounění tkanina Antracit\n\nDesign stejný nebo podobný jako na přiloženém   náhledu.",24,"410 x 900 x 410",null,0]
["2N.P","2.03","A23",null,"Kovový regál\n- Kovové police \n- Počet polic 6 ks\n- Nosnost na polici 100 kg\n\nDesign stejný nebo podobný jako na přiloženém   náhledu.",6,"1000 x 2100 x 400",null,0]
["2N.P","2.03","A24",null,"Lednice bez mrazáku  \n- bílá MONOKLIMATICKÁ\n\nDesign stejný nebo podobný jako na přiloženém   náhledu.\n",2,"595 x 1860 x 650",null,0]
["2N.P","2.03","A25",null,"Pultový mrazák 500 L\n- bílá barva \n\nDesign stejný nebo podobný jako na přiloženém   náhledu.",1,"1405 x 916 x 700",null,0]
["2N.P","2.04","A26",null,"Uzavřená skříň vysoká\n- police na šanony \n- DTDL U732 St9 Prachově šedá – 18 mm\n- Úchytky kovové chrom matný 128 mm\n- Panty s tlumením a dotahem\n\nDesign stejný nebo podobný jako na přiloženém   náhledu.",2,"800 x 2000 x 500",null,0]
["2N.P","2.04","A27",null,"Komoda \n- DTDL U732 St9 Prachově šedá – 18 mm\n- Úchytky kovové chrom matný 128 mm\n- Panty s tlumením a dotahem\n\nDesign stejný nebo podobný jako na přiloženém   náhledu.",1,"800 x 850 x 500",null,0]
["2N.P","2.04","A28",null,"Uzavřená skříň nízká\n- police na šanony \n- DTDL U732 St9 Prachově šedá – 18 mm\n- Úchytky kovové chrom matný 128 mm\n- Panty s tlumením a dotahem\n\nDesign stejný nebo podobný jako na přiloženém   náhledu.",4,"800 x 850 x 500",null,0]
["2N.P","2.04","A29",null,"Křeslo čalouněné\n- barva antracit\n- podnoží kovové černé\n- zatížení 110 kg\n\nDesign stejný nebo podobný jako na přiloženém   náhledu.",14,"580 x 840 x 590",null,0]
["2N.P","2.04","A30",null,"Jídelní stůl pro 6 osob masiv DUB\n- povrchová úprava olej\n\nDesign stejný nebo podobný jako na přiloženém   náhledu.",3,"1600 x 750 x 900",null,0]
["2N.P","2.04","A31",null,"Šuplíková skříň nízká \n- DTDL U732 St9 Prachově šedá – 18 mm\n- Úchytky kovové chrom matný 128 mm\n- Panty s tlumením a dotahem\n\nDesign stejný nebo podobný jako na přiloženém   náhledu.",1,"1900 x 400 x 500",null,0]
["2N.P","2.04","A32",null,"Konferenční stolek \n- Materiál Dub\n- povrchová úprava Olej\n- průměr kruhu 600 mm\n\nDesign stejný nebo podobný jako na přiloženém   náhledu.",1,"Φ 600 x 420",null,0]
["2N.P","2.04","A33",null,"Nástěná kovová police\n- černá kovová konstrukce\n- police uvnitř dřevo\n\nDesign stejný nebo podobný jako na přiloženém   náhledu.",1,"850 x 200 x 200",null,0]
["2N.P","2.04","A34",null,"Police masivní DUB\n- spárovka Dub\n- povrchová úprava Olej – matný\n- uchyceno na zdi za trny\n\nDesign stejný nebo podobný jako na přiloženém   náhledu.",2,"1600 x 40 x 250",null,0]
["2N.P","2.04","A35",null,"Police masivní DUB\n- spárovka Dub\n- povrchová úprava Olej – matný\n- uchyceno na zdi za trny\n\nDesign stejný nebo podobný jako na přiloženém   náhledu.",1,"1200 x 40 x 250",null,0]
["2N.P","2.05","A18",null,"Kontejner mobilní\n- DTDL H1318 St10 Dub divoký – 18 mm\n- Úchytky chrom matný 128 mm\n- Výsuvy s tlumením a dotahem\n\nDesign stejný nebo podobný jako na přiloženém   náhledu.",2,"430 x 650 x 500",null,0]
["2N.P","2.05","A29",null,"Křeslo čalouněné\n- barva antracit\n- podnoží kovové černé\n- zatížení 110 kg\n\nDesign stejný nebo podobný jako na přiloženém   náhledu.",2,"580 x 840 x 590",null,0]
["2N.P","2.05","A32",null,"Konferenční stolek \n- Materiál Dub\n- povrchová úprava Olej\n- průměr kruhu 600 mm\n\nDesign stejný nebo podobný jako na přiloženém   náhledu.",1,"Φ 600 x 420",null,0]
["2N.P","2.05","A36",null,"Skříně uzavřená policová\n- DTDL H1318 St10 Dub divoký – 18 mm\n- Úchytky kovové chrom matný 128 mm\n- Panty s tlumením a dotahem\n\nDesign stejný nebo podobný jako na přiloženém   náhledu.",1,"800 x 1800 x 600",null,0]
["2N.P","2.05","A37",null,"Skříně otevřená nástěná\n- DTDL H1318 St10 Dub Divoký – 18 mm\n\nDesign stejný nebo podobný jako na přiloženém   náhledu.",1,"800 x 300 x 300",null,0]
["2N.P","2.05","A38",null,"Pracovní stůl\n- DTDL H1318 St10 Dub Divoký – 18 mm\n\nDesign stejný nebo podobný jako na přiloženém   náhledu.",1,"1800 x 750 x 600",null,0]
["2N.P","2.05","A39",null,"Kancelářská židle \n- ergonomická kancelářská židle \n- nosnost 136 kg\n- konstrukce na kolečkách\n- materiál EKO kůže\n\nDesign stejný nebo podobný jako na přiloženém   náhledu.",1,"630 x 1060 x 600",null,0]
["2N.P","2.06","A40",null,"Jídelní stůl pro 8 osob masiv DUB\n- povrchová úprava olej\n\nDesign stejný nebo podobný jako na přiloženém   náhledu.",2,"2000 x 750 x 1000",null,0]
["2N.P","2.06","A41",null,"Židle masivní \n- dubová židle\n- hmostnost židle 8 kg\n- povrchová úprava olej, vosk\n- čalounění tkanina Antracit\n\nDesign stejný nebo podobný jako na přiloženém   náhledu.",16,"410 x 900 x 410",null,0]
["2N.P","2.07","A29",null,"Křeslo čalouněné\n- barva antracit\n- podnoží kovové černé\n- zatížení 110 kg\n\nDesign stejný nebo podobný jako na přiloženém   náhledu.",8,"580 x 840 x 590",null,0]
["2N.P","2.07","A32",null,"Konferenční stolek \n- Materiál Dub\n- povrchová úprava Olej\n- průměr kruhu 600 mm\n\nDesign stejný nebo podobný jako na přiloženém   náhledu.",3,"Φ 600 x 420",null,0]
["2N.P","2.07","A43 ",null,"Sedací vak \n- voděodolný materiál\n- nosnost 130 kg\n- výplň z polystyrenových kuliček\n\nDesign stejný nebo podobný jako na přiloženém   náhledu.",4,"950 x 900 x 650",null,0]
["2N.P","2.07","A44",null,"Rautový stůl\n- skládací rautový stůl\n- ubrus natahovací bílý\n\nDesign stejný nebo podobný jako na přiloženém   náhledu.",1,"1800 x 740 x 760 ",null,0]
["2N.P","2.07","A45",null,"Dřevěná police \n- materiál masiv dub \n- povrchová úprava olej\n\nDesign stejný nebo podobný jako na přiloženém   náhledu.",1,"2200 x 40 x 250",null,0]
["2N.P","2.07","A46",null,"Dřevěná police \n- materiál masiv dub \n- povrchová úprava olej\n\nDesign stejný nebo podobný jako na přiloženém   náhledu.",1,"3200 x 40 x 250",null,0]
["2N.P","2.07","A47",null,"Dřevěná police \n- materiál masiv dub \n- povrchová úprava olej\n\nDesign stejný nebo podobný jako na přiloženém   náhledu.",1,"1000 x 40 x 250",null,0]
["2N.P","2.07","A48",null,"Dřevěná police \n- materiál masiv dub \n- povrchová úprava olej\n\nDesign stejný nebo podobný jako na přiloženém   náhledu.",1,"1100 x 40 x 250",null,{"$f":"H70*F70","v":0}]
["2N.P","2.15","A30",null,"Jídelní stůl pro 6 osob masiv DUB\n- povrchová úprava olej\n\nDesign stejný nebo podobný jako na přiloženém   náhledu.",6,"1600 x 750 x 900",null,0]
["2N.P","2.15","A41",null,"Židle masivní \n- dubová židle\n- hmostnost židle 8 kg\n- povrchová úprava olej, vosk\n- čalounění tkanina Antracit\n\nDesign stejný nebo podobný jako na přiloženém   náhledu.",36,"410 x 900 x 410",null,0]
["2N.P","2.15","A49",null,"Věšáková deska s policí\n- barva antracit \n- věšáky kovové \n\nDesign stejný nebo podobný jako na přiloženém   náhledu.",4,"900 x 400\n",null,{"$f":"H73*F73","v":0}]
["2N.P","2.15","A49",null,"Věšáková deska s policí\n- barva antracit \n- věšáky kovové \n\nDesign stejný nebo podobný jako na přiloženém   náhledu.",2,"\n700 x 400",null,0]
["VENKU",null,"P.S",null,"Pivní set \n- Kovová konstrukce v kombinaci s dřevem\n- Nosnost lavic 250 kg\n- Nosnost stolu 150 kg\n\nDesign stejný nebo podobný jako na přiloženém   náhledu.",6,"1800 x 770 x 500\n1800 x 460 x 250 ",null,0]
["VENKU",null,"P.VI",null,"Kovový pivní set \n- povrchová úprava kovu zinek\n- barva desek Palisandr\n\nDesign stejný nebo podobný jako na přiloženém   náhledu.",1,"1500 x 730 x 870",null,0]
["VENKU",null,"P.VII",null,"Zahradní set\n- barva desek Palisandr\n- povrchová úprava kovu zinek\n\nDesign stejný nebo podobný jako na přiloženém   náhledu.",3,"1700 x 750 x 610",null,0]
[null,null,null,"Kompletní doprava nábytku do objektu - soub.  ",null,1,null,null,0]
[null,null,null,"Veškeré pomocné a montážní práce, roznesení nábytku - soub.",null,1,null,null,0]
[null,null,null,"Úklid pracoviště po montáži nábytku - soub.",null,1,null,null,0]
[null,null,null,"Likvidace veškerého odpadu po dodávce a montáži nábytku    soub.",null,1,null,null,0]
["Konečná cena ",null,null,null,null,null,null,null,{"$f":"SUM(I5:I81)","v":0}]